bitfinex/quotes_ETHUSD_20260102
["timestamp","ask_amount","ask_price","bid_price","bid_amount"]
[1767364110657,2.41653333,3037.5,3036.5,3.65252072]
[1767364111059,2.41653333,3037.5,3036.5,2.78852072]
[1767364112354,2.65710571,3037.6,3036.6,2.78852072]
[1767364113180,0.001,3037.7,3036.6,2.78852072]
[1767364114386,0.001,3037.7,3036.6,6.08166489]
[1767364114589,0.001,3037.7,3036.7,2.78852072]
[1767364115085,2.41234468,3037.7,3036.7,2.78852072]
[1767364116178,2.41007335,3037.5,3036.7,2.78852072]
[1767364116377,2.98028795,3037.4,3036.7,2.78852072]
[1767364116550,2.41007335,3037.4,3036.5,0.002]
[1767364117277,2.40683211,3037.2,3036.0,2.78852072]
[1767364118401,0.864,3037.3,3036.0,2.78852072]
[1767364118402,2.40560191,3037.0,3036.0,2.78852072]
[1767364118568,2.40560191,3036.8,3035.7,2.78852072]
[1767364118771,2.4043896,3036.7,3035.7,2.78852072]
[1767364119954,2.4043896,3036.7,3035.6,0.864]
[1767364120155,2.4031818,3036.5,3035.5,0.002]
[1767364122309,2.40432217,3036.3,3035.5,0.002]
[1767364122514,2.40432217,3036.1,3035.5,0.002]
[1767364123011,2.40432217,3036.1,3035.3,0.002]
[1767364125184,2.40432217,3036.1,3035.3,2.79052072]
[1767364125384,0.56976959,3036.2,3035.3,2.79052072]
[1767364125705,1.43376959,3036.2,3035.3,2.79052072]
[1767364126402,4.15760957,3036.2,3035.3,2.79052072]
[1767364126593,0.864,3036.2,3035.3,2.79052072]
[1767364127908,2.40105748,3036.3,3035.4,2.78852072]
[1767364128109,3.26270551,3036.6,3035.4,2.78852072]
[1767364128423,3.29778863,3036.9,3035.4,2.78852072]
[1767364128594,3.29253823,3037.2,3035.8,2.78852072]
[1767364128595,3.29257733,3037.2,3035.8,2.78852072]
[1767364128785,0.864,3037.1,3035.8,2.78852072]
[1767364128988,2.39754885,3037.1,3035.8,2.78852072]
[1767364129937,6.55278381,3037.4,3035.8,2.78852072]
[1767364130138,2.3964418,3037.3,3035.8,2.78852072]
[1767364130338,3.05172018,3037.2,3036.0,2.78852072]
[1767364131155,3.05172018,3037.2,3036.1,2.78852072]
[1767364131523,0.864,3037.4,3036.1,2.78852072]
[1767364132053,3.25818318,3037.4,3036.1,2.78852072]
[1767364132344,2.39418318,3037.3,3036.2,0.864]
[1767364132655,2.39418318,3037.3,3036.3,2.78852072]
[1767364134550,2.39418318,3037.3,3036.3,2.79052072]
[1767364134726,2.71346264,3037.2,3036.3,2.79052072]
[1767364135622,2.38662268,3037.1,3036.3,2.79052072]
[1767364138562,0.864,3037.3,3036.3,2.79052072]
[1767364138761,3.2466582,3037.3,3036.3,2.79052072]
[1767364139432,2.3826582,3037.2,3036.3,2.79052072]
[1767364139632,3.03559753,3037.1,3036.3,2.79052072]
[1767364139843,2.38169139,3037.1,3036.3,2.79052072]
[1767364141760,2.3797685,3037.4,3036.4,2.68371219]
[1767364142062,0.864,3037.3,3036.4,2.68371219]
[1767364142854,3.2437685,3037.4,3036.4,2.68371219]
[1767364143247,2.38231912,3037.3,3036.4,2.68371219]
[1767364143528,2.38331912,3037.1,3036.4,2.68371219]
[1767364150573,0.001,3037.1,3036.4,2.68371219]
[1767364151071,0.001,3037.1,3036.6,2.68371219]
[1767364152552,2.37534454,3037.1,3036.3,2.68571219]
[1767364152757,2.37534454,3037.1,3036.0,2.68371219]
[1767364153077,2.37149975,3036.9,3036.0,2.68371219]
[1767364153252,2.37149975,3036.8,3036.0,2.68371219]
[1767364154182,2.37149975,3036.8,3035.6,2.68371219]
[1767364154480,2.37063794,3036.6,3035.6,2.68371219]
[1767364154880,2.37063794,3036.6,3035.8,2.68371219]
[1767364155185,0.23706379,3036.6,3035.8,2.68371219]
[1767364156374,0.864,3036.8,3036.0,2.68371219]
[1767364157384,2.36477336,3037.0,3036.0,2.68371219]
[1767364157586,2.36477336,3037.0,3036.1,2.71664918]
[1767364157882,0.001,3037.1,3036.1,2.68371219]
[1767364158192,3.22890594,3037.1,3036.1,2.68371219]
[1767364158369,0.32289059,3037.0,3036.1,2.68371219]
[1767364159058,0.32289059,3037.0,3036.2,2.68371219]
[1767364159059,2.68590476,3037.0,3036.2,2.68371219]
[1767364163176,2.68590476,3037.0,3036.2,3.2935658]
[1767364163502,2.68590476,3037.0,3036.3,2.71664701]
[1767364163670,2.36301417,3037.0,3036.3,2.71664701]
[1767364163876,2.36301417,3037.0,3036.3,2.68371219]
[1767364164182,0.001,3037.1,3036.3,2.68371219]
[1767364164982,0.001,3037.1,3036.0,0.864]
[1767364164983,0.001,3037.1,3036.5,2.68371219]
[1767364165166,0.001,3037.1,3036.5,3.28142078]
[1767364165363,2.35138537,3037.0,3036.1,2.68371219]
[1767364165883,2.3466253,3036.9,3036.1,2.68371219]
[1767364167420,2.3466253,3036.9,3035.8,3.79833225]
[1767364167927,2.3466253,3036.9,3035.9,2.93433225]
[1767364168492,2.34459189,3036.8,3035.6,2.93433225]
[1767364168797,2.34393215,3036.7,3035.6,2.93433225]
[1767364169101,0.864,3036.6,3035.6,2.93433225]
[1767364169300,2.34393215,3036.5,3035.6,2.93433225]
[1767364171513,2.33932158,3036.4,3035.6,2.93433225]
[1767364171697,2.33875849,3036.2,3035.6,2.93433225]
[1767364172295,3.20275849,3036.5,3035.7,0.03294133]
[1767364172496,2.33875849,3036.5,3035.8,2.93433225]
[1767364173623,2.33757528,3036.4,3035.5,2.93633225]
[1767364176528,2.33642598,3036.3,3035.5,2.93633225]
[1767364176829,2.33586325,3036.2,3035.5,2.93633225]
[1767364179341,0.89231314,3036.3,3035.5,2.93633225]
[1767364179550,3.19874697,3036.4,3035.5,2.93633225]
[1767364181542,2.33040893,3036.3,3035.5,2.93633225]
[1767364182037,2.33040893,3036.3,3035.5,0.002]
[1767364182620,2.33040893,3036.3,3035.5,2.93633225]
[1767364183223,2.33040893,3036.3,3035.5,0.002]
[1767364183420,2.32945084,3036.1,3035.3,2.93633225]
[1767364185859,2.32274355,3036.0,3035.3,2.93633225]
[1767364188165,4.27177265,3036.2,3035.3,2.93633225]
[1767364188166,4.16400653,3036.2,3035.3,2.93633225]
[1767364188350,2.32188198,3036.5,3035.4,2.93433225]
[1767364188550,2.32188198,3036.5,3035.6,2.93433225]
[1767364188858,2.32146053,3036.9,3035.6,2.96727466]
[1767364189330,2.32146053,3036.9,3035.6,2.93433225]
[1767364191076,2.32062651,3036.8,3035.7,2.93433225]
[1767364192035,2.32062651,3036.8,3035.4,2.82416347]
[1767364192251,2.31984423,3036.6,3035.4,2.82416347]
[1767364192471,0.864,3036.5,3035.4,2.82416347]
[1767364192635,2.3161349,3036.6,3035.4,2.82416347]
[1767364192838,2.3161349,3036.4,3035.4,2.82416347]
[1767364193380,2.3161349,3036.3,3035.4,2.82416347]
[1767364193544,2.3161349,3036.1,3035.4,2.82416347]
[1767364194768,2.3161349,3036.1,3035.6,2.82416347]
[1767364195081,1.4249587,3036.2,3035.6,2.82416347]
[1767364195233,0.5609587,3036.2,3035.6,2.82416347]
[1767364195434,2.31213012,3036.1,3035.5,0.002]
[1767364195735,2.31213012,3036.0,3035.5,0.002]
[1767364196265,2.31213012,3036.0,3035.2,0.002]
[1767364196451,0.70306873,3036.1,3035.2,2.92173039]
[1767364196770,3.29345267,3036.4,3035.2,2.92173039]
[1767364196771,3.16797075,3036.4,3035.4,2.91973039]
[1767364196946,2.30397075,3036.3,3035.4,2.91973039]
[1767364197395,2.30397075,3036.2,3035.4,2.91973039]
[1767364197918,2.30397075,3036.2,3035.2,2.92173039]
[1767364199385,2.30347834,3036.0,3035.2,2.92173039]
[1767364199587,2.30347834,3035.8,3035.2,2.92173039]
[1767364199989,1.42371775,3035.9,3035.2,2.92173039]
[1767364200323,2.30322633,3035.8,3034.8,0.002]
[1767364200494,2.29722633,3035.5,3034.3,2.92173039]
[1767364200821,2.29722633,3035.5,3032.8,5.44977488]
[1767364200822,2.28898744,3034.7,3033.6,2.91973039]
[1767364201008,2.28898744,3035.3,3033.6,2.91973039]
[1767364201228,0.28629441,3035.7,3033.9,2.91973039]
[1767364201229,2.28898744,3035.1,3033.9,2.91973039]
[1767364201529,2.28898744,3034.9,3034.1,2.91973039]
[1767364201837,2.28875403,3035.4,3034.2,4.07899941]
[1767364202131,2.28875403,3035.7,3034.3,2.95268692]
[1767364202506,2.28875403,3036.3,3034.3,2.95268692]
[1767364202706,2.28850275,3036.1,3034.3,2.95268692]
[1767364203440,2.28850275,3035.9,3034.5,2.91973039]
[1767364203743,2.28850275,3035.9,3034.7,2.91973039]
[1767364203937,0.864,3036.3,3034.7,2.91973039]
[1767364204136,0.001,3036.4,3035.1,2.91973039]
[1767364204336,0.001,3036.4,3035.3,2.91973039]
[1767364204549,2.28825805,3036.7,3036.1,7.02559322]
[1767364204903,2.28825805,3036.7,3036.1,2.91973039]
[1767364206140,2.28777624,3036.5,3035.5,2.91973039]
[1767364206340,4.10586283,3035.9,3035.1,2.91973039]
[1767364206649,2.28777624,3035.7,3034.7,2.91973039]
[1767364206834,0.22877762,3035.7,3034.8,2.91973039]
[1767364207010,2.2875309,3035.9,3034.8,2.91973039]
[1767364207339,2.2875309,3035.9,3034.9,2.91973039]
[1767364207647,2.2875309,3035.9,3034.4,0.864]
[1767364207648,2.2875309,3035.9,3035.0,2.91973039]
[1767364208407,2.28728918,3036.3,3035.2,2.91973039]
[1767364208612,0.864,3036.7,3035.4,2.91973039]
[1767364208810,2.70274019,3036.6,3035.4,2.91973039]
[1767364209218,2.70274019,3036.6,3035.0,2.91973039]
[1767364209520,2.28704586,3036.4,3035.1,2.91973039]
[1767364210226,2.28704586,3036.4,3033.9,5.45210375]
[1767364210227,2.28681107,3036.3,3034.5,4.15939114]
[1767364210441,9.87979581,3036.5,3034.6,2.91973039]
[1767364210442,2.28481107,3035.9,3034.6,2.91973039]
[1767364210742,2.28481107,3035.7,3034.6,2.91973039]
[1767364210946,2.28458716,3035.5,3034.6,2.91973039]
[1767364211246,2.28458716,3035.5,3034.2,2.91973039]
[1767364211540,5.57893772,3035.5,3034.4,2.91973039]
[1767364211842,3.29413356,3035.7,3034.4,2.91973039]
[1767364211843,0.77349148,3035.8,3034.6,2.91973039]
[1767364212008,0.001,3036.9,3034.6,2.91973039]
[1767364212009,2.28439361,3036.1,3034.8,2.91973039]
[1767364212214,2.28439361,3036.0,3034.8,2.91973039]
[1767364212491,2.28439361,3035.9,3034.8,2.91973039]
[1767364212667,2.28417032,3036.5,3035.0,2.91973039]
[1767364212983,2.28417032,3036.3,3035.0,2.91973039]
[1767364213683,0.26998647,3036.4,3035.2,2.91973039]
[1767364213985,0.26998647,3036.4,3035.4,2.91973039]
[1767364214151,2.28393695,3036.3,3035.0,2.91973039]
[1767364214562,0.26998647,3036.4,3035.2,5.45010375]
[1767364214761,2.2837194,3036.8,3035.3,3.50098122]
[1767364214985,2.2837194,3036.8,3035.5,2.91973039]
[1767364215374,0.001,3037.0,3035.5,2.91973039]
[1767364215558,0.001,3037.0,3036.1,2.91973039]
[1767364216103,2.2845216,3037.5,3036.1,2.91973039]
[1767364216331,2.2845216,3037.5,3036.2,2.91973039]
[1767364216514,0.001,3037.7,3036.3,2.91973039]
[1767364216829,0.001,3037.7,3036.2,5.45010375]
[1767364216830,0.001,3038.2,3036.4,0.864]
[1767364217008,0.001,3038.2,3037.2,2.91973039]
[1767364217181,2.28628698,3038.1,3037.2,2.91973039]
[1767364218213,5.57782165,3038.1,3037.2,2.91973039]
[1767364218418,3.15028698,3038.1,3037.2,2.91973039]
[1767364218620,0.001,3038.4,3037.5,5.45010375]
[1767364218917,0.001,3038.4,3037.2,6.58498358]
[1767364218918,2.20914896,3038.8,3037.7,2.91973039]
[1767364219118,2.20914896,3038.8,3037.6,0.864]
[1767364219419,2.20914896,3038.8,3037.4,2.91973039]
[1767364219618,2.20914896,3038.8,3037.6,2.91973039]
[1767364220397,0.001,3038.9,3037.6,2.91973039]
[1767364220598,0.001,3038.9,3037.7,2.91973039]
[1767364220599,2.20333397,3038.9,3037.7,2.91973039]
[1767364220802,2.20233397,3038.8,3037.7,2.91973039]
[1767364221515,0.001,3039.4,3037.5,6.58436212]
[1767364221516,0.001,3039.4,3038.3,2.91973039]
[1767364221816,0.001,3039.4,3038.5,2.91973039]
[1767364223118,2.19765678,3039.4,3038.5,2.91973039]
[1767364223289,0.21976568,3039.3,3038.5,2.91973039]
[1767364223618,0.001,3039.4,3038.5,2.91973039]
[1767364223826,0.001,3039.4,3038.6,2.91973039]
[1767364224042,2.19440422,3041.1,3039.0,2.91973039]
[1767364224218,2.19440422,3040.6,3038.7,0.864]
[1767364224404,2.19440422,3040.4,3038.8,2.91973039]
[1767364224711,2.19440422,3040.2,3038.8,2.91973039]
[1767364224915,2.19440422,3040.2,3038.4,3.78373039]
[1767364225116,2.19440422,3040.2,3038.5,2.91973039]
[1767364225527,2.19440422,3040.2,3038.6,2.91973039]
[1767364225830,2.19440422,3040.2,3038.3,3.29128669]
[1767364225831,2.18795227,3039.8,3038.3,2.91973039]
[1767364226538,0.001,3039.4,3038.4,2.80774289]
[1767364226746,2.17649008,3039.4,3038.4,2.80774289]
[1767364227236,0.001,3039.4,3038.4,2.80774289]
[1767364227479,0.21944042,3040.1,3038.7,5.45010375]
[1767364227590,2.17649008,3041.1,3039.6,2.80774289]
[1767364227939,2.17445281,3041.6,3040.2,2.80774289]
[1767364228095,2.17445281,3041.4,3039.8,2.80774289]
[1767364228603,2.17445281,3041.4,3039.9,2.80774289]
[1767364228798,0.21744528,3041.3,3039.9,3.50389701]
[1767364229224,0.864,3041.4,3039.9,3.50389701]
[1767364229393,2.17145077,3041.3,3039.9,2.80774289]
[1767364229716,0.001,3041.9,3039.9,2.80774289]
[1767364229915,2.16533353,3041.7,3040.0,2.80774289]
[1767364230323,2.16533353,3041.7,3039.0,4.624386]
[1767364230487,2.16533353,3041.5,3039.5,2.80774289]
[1767364230693,2.16533353,3041.5,3039.7,2.80774289]
[1767364230910,2.16574864,3041.3,3039.7,2.80774289]
[1767364231701,0.864,3041.4,3038.2,2.80774289]
[1767364231702,2.24590991,3040.8,3038.2,2.80774289]
[1767364231902,13.15400044,3040.9,3038.9,2.80774289]
[1767364231903,5.68143446,3040.6,3038.9,2.80774289]
[1767364232106,2.24590991,3040.5,3038.9,2.80774289]
[1767364232419,2.40299104,3040.7,3038.9,2.80774289]
[1767364232420,2.24590991,3040.3,3038.9,2.80774289]
[1767364233200,2.24313206,3040.1,3039.1,2.80774289]
[1767364233422,2.24313206,3040.1,3038.4,2.84065494]
[1767364233622,3.41674527,3040.0,3038.6,2.80774289]
[1767364233824,2.55374527,3040.0,3038.7,2.84065169]
[1767364234029,0.31061321,3040.0,3038.7,2.80774289]
[1767364234196,2.54785817,3040.0,3038.7,2.80774289]
[1767364234532,0.31061321,3040.0,3038.9,2.80774289]
[1767364234840,4.15210772,3040.4,3039.1,2.80774289]
[1767364235056,2.23455766,3040.3,3039.1,2.80774289]
[1767364235844,7.44124616,3040.4,3038.6,2.80774289]
[1767364235845,2.23194662,3040.1,3038.6,2.80774289]
[1767364236653,0.863,3040.0,3038.6,2.80774289]
[1767364236821,2.22933171,3039.9,3038.6,2.80774289]
[1767364237025,2.22933171,3039.7,3038.2,2.80774289]
[1767364237840,3.2900148,3039.5,3038.2,6.09915648]
[1767364238153,3.2900148,3039.5,3038.3,2.80774289]
[1767364238648,5.51676386,3039.5,3038.3,2.80774289]
[1767364238857,0.863,3039.5,3038.3,2.80774289]
[1767364239082,2.224206,3039.9,3038.5,2.80774289]
[1767364239375,2.224206,3040.6,3038.7,2.80774289]
[1767364239579,2.224206,3040.4,3038.7,2.80774289]
[1767364240161,2.2216843,3040.2,3038.7,2.80774289]
[1767364240327,2.2216843,3040.0,3038.7,3.42091391]
[1767364240526,2.2216843,3039.9,3038.7,2.80774289]
[1767364240731,5.68143446,3039.9,3038.1,2.80774289]
[1767364240933,2.21919627,3039.8,3037.6,2.80774289]
[1767364241141,2.21919627,3039.6,3037.8,2.80774289]
[1767364241357,2.21919627,3039.4,3038.0,2.80774289]
[1767364241562,0.22191963,3039.3,3038.0,3.08851718]
[1767364241764,2.21674814,3039.1,3038.0,3.08851718]
[1767364242149,0.22191963,3039.3,3038.0,3.08851718]
[1767364242350,0.22191963,3039.3,3038.1,2.80774289]
[1767364242351,3.51215992,3039.3,3038.1,2.80774289]
[1767364242658,0.22191963,3039.3,3038.4,2.80774289]
[1767364242861,2.21114798,3039.8,3038.3,0.002]
[1767364243067,2.21114798,3039.1,3038.3,0.002]
[1767364243359,0.863,3039.0,3038.3,0.002]
[1767364243659,0.863,3039.0,3038.0,0.28077429]
[1767364243857,0.863,3039.0,3037.9,2.80774289]
[1767364243858,2.20677951,3038.9,3037.9,2.80774289]
[1767364244052,6.58154534,3038.8,3037.9,2.80774289]
[1767364244248,2.20677951,3038.7,3037.5,2.80974289]
[1767364245054,0.863,3038.6,3037.5,2.80974289]
[1767364245441,2.20677951,3038.7,3037.5,2.80974289]
[1767364245643,0.863,3038.6,3037.7,2.80774289]
[1767364245865,3.085612,3038.7,3037.7,2.80774289]
[1767364246064,5.49259464,3039.1,3037.9,2.80774289]
[1767364246277,5.49259464,3039.1,3037.8,0.03291855]
[1767364246278,2.20212911,3039.8,3038.1,2.80774289]
[1767364246578,0.001,3040.3,3038.7,2.80774289]
[1767364246748,5.48999919,3040.3,3038.9,2.80774289]
[1767364246944,2.20083718,3040.3,3039.1,2.80774289]
[1767364247150,0.001,3040.3,3039.1,2.80774289]
[1767364247697,2.19983718,3041.1,3039.3,2.80774289]
[1767364247698,3.06283718,3041.1,3039.3,2.80774289]
[1767364248003,2.19983718,3041.1,3039.7,2.80774289]
[1767364248206,0.21998372,3041.0,3039.9,2.80774289]
[1767364248487,2.41855754,3041.0,3039.9,2.80774289]
[1767364249465,0.001,3041.3,3040.1,2.80774289]
[1767364249668,3.28907447,3041.3,3040.1,2.80774289]
[1767364249869,5.48318851,3041.3,3040.1,2.80774289]
[1767364250069,3.28828384,3041.1,3040.1,2.80774289]
[1767364250283,0.001,3041.6,3040.1,2.80774289]
[1767364250284,0.001,3041.6,3040.2,2.80774289]
[1767364250455,2.19411404,3042.3,3040.4,2.80774289]
[1767364250782,0.863,3042.4,3040.4,2.80774289]
[1767364250991,2.19493531,3041.9,3040.4,2.80774289]
[1767364251290,0.001,3041.9,3040.4,2.80774289]
[1767364251796,0.001,3041.6,3040.4,2.80774289]
[1767364251951,2.19038062,3043.5,3041.2,9.86452716]
[1767364252154,0.17170421,3044.1,3041.4,2.80774289]
[1767364252155,2.19038062,3043.2,3041.4,2.80774289]
[1767364252465,9.85545333,3044.0,3041.6,2.80774289]
[1767364252466,2.19038062,3042.9,3041.6,2.80774289]
[1767364252651,2.18828876,3042.6,3041.3,1.55459616]
[1767364252852,2.18928876,3042.8,3041.2,2.80774289]
[1767364254080,8.75932663,3042.7,3041.2,2.80774289]
[1767364254454,2.18621723,3042.6,3041.2,2.80774289]
[1767364255364,0.863,3042.5,3041.2,2.80774289]
[1767364255569,2.1841386,3042.4,3041.2,2.80774289]
[1767364255764,2.4836501,3042.3,3041.2,2.80774289]
[1767364256168,2.17693734,3042.1,3040.7,2.59554644]
[1767364257085,2.17497628,3041.9,3040.7,2.59554644]
[1767364257284,2.17497628,3041.9,3040.1,2.59554644]
[1767364257462,6.57418972,3042.2,3040.4,2.59554644]
[1767364257664,0.68789036,3042.1,3040.7,2.59554644]
[1767364257866,3.28698681,3042.3,3040.7,2.59554644]
[1767364258055,0.863,3042.6,3040.7,2.59554644]
[1767364258056,2.17635602,3042.0,3040.7,2.59554644]
[1767364258256,2.17635602,3041.8,3040.7,2.59554644]
[1767364260182,2.1724851,3041.6,3040.2,2.59554644]
[1767364260387,2.1724851,3042.0,3040.4,2.59554644]
[1767364260552,0.863,3042.1,3040.6,2.59554644]
[1767364260752,2.17060308,3042.0,3040.6,2.59554644]
[1767364261557,0.863,3042.1,3040.1,2.59554644]
[1767364261558,2.17060308,3041.9,3040.1,2.59554644]
[1767364261755,16.4333136,3042.6,3040.4,2.59554644]
[1767364261756,0.21706031,3041.8,3040.4,2.59554644]
[1767364261982,0.21706031,3041.8,3040.3,5.68143446]
[1767364261983,2.16873544,3042.4,3040.8,2.59554644]
[1767364262189,3.28698681,3042.3,3041.0,2.59554644]
[1767364262600,5.45572225,3042.3,3041.0,2.59554644]
[1767364262891,3.28698681,3042.3,3041.0,2.59554644]
[1767364263093,6.57397362,3042.3,3041.0,2.59554644]
[1767364263308,7.84517333,3042.1,3040.4,2.59554644]
[1767364263492,2.16373887,3041.9,3040.0,2.59754644]
[1767364263793,2.16199553,3041.9,3040.0,2.59754644]
[1767364263980,2.16199553,3041.7,3040.0,2.59754644]
[1767364264298,2.15999553,3041.1,3039.1,2.59554644]
[1767364264481,2.15999553,3040.9,3039.2,0.29660115]
[1767364264792,2.15509023,3040.7,3039.2,2.89214759]
[1767364265157,2.15509023,3040.7,3039.2,2.59554644]
[1767364266191,2.15023247,3040.5,3039.2,2.59554644]
[1767364266958,2.15023247,3040.5,3038.8,0.002]
[1767364267159,2.15023247,3040.5,3038.1,2.59554644]
[1767364267160,2.1466168,3039.9,3038.1,2.59554644]
[1767364267363,2.1466168,3039.7,3038.1,2.59554644]
[1767364267576,0.22417393,3039.8,3038.1,2.59554644]
[1767364267896,9.86647371,3040.6,3038.3,2.59554644]
[1767364267897,2.14499889,3039.9,3038.3,2.59554644]
[1767364268195,2.14499889,3039.7,3038.3,2.59554644]
[1767364268412,2.14499889,3039.7,3038.3,2.59454747]
[1767364268705,2.2401214,3039.7,3038.0,0.00078769]
[1767364268866,2.2401214,3039.7,3037.6,0.002]
[1767364268867,2.14040726,3039.1,3037.6,0.002]
[1767364269069,2.14040726,3038.9,3037.6,0.002]
[1767364269398,3.00340726,3038.8,3037.6,0.002]
[1767364269768,2.13884057,3038.7,3036.9,2.59554644]
[1767364269972,2.13484057,3038.6,3036.9,2.59554644]
[1767364270278,2.22996308,3038.4,3036.9,2.59554644]
[1767364270492,2.13484057,3038.2,3036.9,2.59554644]
[1767364270690,2.22996308,3038.2,3036.8,0.002]
[1767364270868,2.22996308,3038.2,3036.7,0.002]
[1767364271068,2.12930007,3037.9,3036.7,0.002]
[1767364271394,0.22244226,3037.8,3036.7,2.59754644]
[1767364271599,1.62573534,3038.3,3036.9,2.59554644]
[1767364271768,3.29060776,3039.0,3037.0,2.62847366]
[1767364271966,4.15366438,3038.9,3037.0,2.62847366]
[1767364272162,2.12777116,3038.8,3036.7,2.59754644]
[1767364272526,2.12777116,3038.5,3036.7,2.59754644]
[1767364272681,0.09512251,3038.6,3036.7,2.59754644]
[1767364272682,2.12777116,3038.3,3036.7,2.59754644]
[1767364272866,2.42534019,3038.2,3036.9,2.59554644]
[1767364273070,2.12626307,3038.0,3036.9,2.59554644]
[1767364273276,2.12626307,3038.0,3036.7,0.002]
[1767364273469,2.12626307,3038.0,3036.7,2.59754644]
[1767364273671,0.863,3037.9,3036.7,2.59754644]
[1767364273867,2.42369754,3037.8,3036.7,2.59754644]
[1767364274098,2.42369754,3037.8,3036.8,2.62847583]
[1767364274263,0.863,3037.7,3036.8,2.59554644]
[1767364274604,2.98777123,3037.7,3036.7,0.002]
[1767364274804,2.98777123,3037.7,3036.3,0.002]
[1767364274805,2.12328108,3037.6,3036.3,0.002]
[1767364275004,2.12128108,3037.5,3036.3,0.002]
[1767364275377,0.863,3037.4,3036.3,2.59754644]
[1767364275598,5.41102575,3038.4,3036.4,2.59554644]
[1767364275799,5.41102575,3038.4,3036.3,0.002]
[1767364275800,0.863,3038.3,3036.5,2.59554644]
[1767364276098,0.62740257,3038.2,3036.7,2.59554644]
[1767364276307,2.11981986,3037.9,3036.7,2.59554644]
[1767364276813,6.58327846,3038.0,3036.7,2.59554644]
[1767364276814,0.863,3037.8,3036.7,2.59554644]
[1767364277112,2.11836731,3037.7,3036.6,0.002]
[1767364277286,2.11836731,3037.7,3036.3,2.59754644]
[1767364277492,2.11636731,3037.5,3036.3,2.59754644]
[1767364278081,2.11636731,3037.5,3036.3,0.002]
[1767364278282,2.11206344,3037.3,3036.0,0.002]
[1767364278608,2.11006344,3037.1,3035.8,0.002]
[1767364279125,2.10386502,3037.3,3035.9,2.59554644]
[1767364279410,6.5845789,3037.4,3036.0,2.85530108]
[1767364279411,0.86884439,3037.2,3036.0,2.85530108]
[1767364279784,2.10283799,3037.0,3035.8,0.002]
[1767364280294,2.10283799,3036.8,3035.6,0.002]
[1767364281010,3.2928315,3036.9,3035.6,2.59754644]
[1767364281211,0.86884439,3037.2,3035.7,2.62848776]
[1767364281380,2.96069524,3037.5,3035.7,2.59554644]
[1767364281583,0.864,3037.5,3035.7,2.59554644]
[1767364281782,0.16,3038.5,3036.8,2.59554644]
[1767364281783,2.59606048,3038.4,3036.8,2.59554644]
[1767364282006,2.69118299,3038.3,3035.7,2.59554644]
[1767364282204,5.88761072,3038.1,3036.4,2.59554644]
[1767364282391,9.17916096,3038.1,3036.6,2.59554644]
[1767364282599,2.59606048,3038.0,3036.6,2.59554644]
[1767364282793,2.59606048,3038.0,3035.9,0.01679211]
[1767364282794,2.59606048,3037.7,3035.9,0.01679211]
[1767364282995,2.59606048,3037.7,3036.1,2.59554644]
[1767364283308,0.25960605,3037.6,3036.3,2.59554644]
[1767364283508,10.04316096,3038.1,3036.3,2.59554644]
[1767364283710,2.59606048,3038.1,3036.3,2.59554644]
[1767364283909,2.59606048,3038.1,3036.2,7.26250602]
[1767364283910,2.59606048,3038.1,3036.5,2.59554644]
[1767364284082,5.88764639,3038.1,3036.7,2.59554644]
[1767364284282,2.59606048,3038.7,3036.9,2.59554644]
[1767364284481,0.67509075,3038.6,3037.1,2.59554644]
[1767364284714,0.001,3037.5,3037.4,2.59554644]
[1767364285022,2.59606048,3039.4,3037.5,2.59554644]
[1767364285210,2.69118299,3039.4,3037.6,0.864]
[1767364285414,0.001,3038.8,3037.6,0.864]
[1767364285601,0.26070605,3038.8,3037.6,0.864]
[1767364285784,0.26070605,3038.8,3037.7,2.59554644]
[1767364285984,0.26070605,3038.8,3037.9,2.81471309]
[1767364285985,0.001,3038.8,3037.9,2.81471309]
[1767364287123,2.82126056,3038.7,3036.3,2.59379433]
[1767364287285,2.82126056,3038.7,3036.8,2.59379433]
[1767364287612,2.82126056,3038.7,3036.9,2.59379433]
[1767364287813,2.82126056,3038.7,3037.1,2.59379433]
[1767364288112,2.82126056,3038.5,3037.1,2.59379433]
[1767364288311,6.58241178,3038.4,3037.1,2.59379433]
[1767364288521,0.001,3038.8,3037.2,2.59379433]
[1767364288817,0.001,3038.8,3037.4,2.59379433]
[1767364289312,3.29177267,3038.8,3037.4,2.59379433]
[1767364289513,0.32917727,3038.7,3037.6,2.59379433]
[1767364289690,6.11114838,3039.7,3037.6,2.59379433]
[1767364290017,2.82126056,3039.6,3037.9,2.59379433]
[1767364290521,2.82126056,3039.9,3038.1,2.59379433]
[1767364290738,1.26907354,3039.8,3038.3,2.59379433]
[1767364291022,2.82126056,3039.7,3038.4,0.864]
[1767364291227,2.82126056,3039.7,3038.3,2.59379433]
[1767364291443,2.82126056,3039.5,3038.3,3.45779433]
[1767364291806,2.82126056,3039.5,3037.0,5.436156]
[1767364292026,2.82126056,3039.5,3037.2,2.59379433]
[1767364292346,2.82126056,3039.3,3037.3,2.59379433]
[1767364292544,2.82126056,3039.1,3037.4,2.59379433]
[1767364292737,2.82126056,3038.9,3037.4,3.18241249]
[1767364292922,2.82126056,3038.9,3037.4,2.59379433]
[1767364294611,2.82126056,3038.7,3037.4,2.59379433]
[1767364294848,2.82126056,3038.7,3037.4,3.45779433]
[1767364295348,2.82126056,3038.7,3036.4,3.29332748]
[1767364295349,2.82126056,3038.7,3037.2,0.864]
[1767364295643,2.82126056,3038.5,3037.2,0.864]
[1767364295831,2.82126056,3038.4,3037.2,3.45779433]
[1767364296007,0.6049528,3038.6,3037.4,2.59379433]
[1767364296207,0.6049528,3038.6,3037.5,2.59379433]
[1767364296409,3.29056086,3039.0,3037.5,5.436156]
[1767364296606,6.58090125,3039.1,3037.7,2.59379433]
[1767364296948,6.58090125,3039.1,3037.9,2.59379433]
[1767364296949,2.82126056,3039.0,3037.9,2.59379433]
[1767364297846,2.82126056,3039.0,3037.1,5.436156]
[1767364297847,2.82126056,3038.5,3037.1,2.59379433]
[1767364298027,2.82126056,3038.4,3037.1,2.59379433]
[1767364298214,2.82126056,3038.2,3037.1,2.59379433]
[1767364298562,6.58306178,3038.1,3037.1,2.59379433]
[1767364299236,9.40432234,3038.1,3037.1,2.59379433]
[1767364299435,2.82126056,3038.0,3036.6,2.59379433]
[1767364300635,2.82126056,3037.8,3036.6,2.59379433]
[1767364300832,0.94047557,3037.7,3036.6,2.59379433]
[1767364301350,0.94047557,3037.7,3037.0,0.002]
[1767364301666,3.65988654,3038.3,3037.0,2.59579433]
[1767364301877,6.11239132,3038.5,3037.0,2.59579433]
[1767364302063,3.29102607,3038.6,3037.0,2.59579433]
[1767364302234,0.001,3038.8,3037.3,2.59379433]
[1767364302438,3.57400965,3038.8,3037.5,2.59379433]
[1767364302946,6.86479324,3038.8,3037.6,2.59379433]
[1767364304235,9.6860538,3038.8,3037.7,0.864]